[Event "Astana Open-A 2019"]
[Site "Nur-Sultan"]
[Date "2019.07.17"]
[Round "8.3"]
[White "Stupak, Kirill"]
[Black "Vladimir, Burmakin"]
[Result "1/2-1/2"]
[ECO "A46"]
[WhiteElo "2560"]
[BlackElo "2506"]
[Annotator "ChessBase"]
[PlyCount "104"]
[EventDate "2019.07.11"]
[EventCountry "KAZ"]
[SourceTitle "playchess.com"]
[Source "ChessBase"]
[SourceQuality "1"]
[TimeControl "5400+30"]

1. d4 {[%emt 0:03:01]} Nf6 {[%emt 0:00:00]} 2. Nf3 {[%emt 0:00:35]} c6 {[%emt 0:00:00]} 3. Bf4 {[%emt 0:00:07]} Qb6 {[%emt 0:01:17]} 4. Qc1 {[%emt 0:02:50]} Nh5 {[%emt 0:01:46]} 5. Bd2 {[%emt 0:05:00]} Nf6 {[%emt 0:04:17]} 6. c4 {[%emt 0:01:11]} d6 {[%emt 0:00:41]} 7. Nc3 {[%emt 0:05:04]} Bg4 {[%emt 0:00:19]} 8. Be3 {[%emt 0:05:32]} Nbd7 {[%emt 0:03:27]} 9. h3 {[%emt 0:01:36]} Bf5 {[%emt 0:07:12]} 10. g4 {[%emt 0:04:56]} Bg6 {[%emt 0:00:13]} 11. Bg2 {[%emt 0:00:27]} Qb4 {[%emt 0:13:28]} 12. Nd2 {[%emt 0:05:58]} e6 {[%emt 0:00:08]} 13. O-O {[%emt 0:03:54]} Be7 {[%emt 0:03:30]} 14. f4 {[%emt 0:16:33]} O-O {[%emt 0:00:09]} 15. Bf2 {[%emt 0:04:29]} d5 {[%emt 0:03:18]} 16. a3 {[%emt 0:02:10]} Qa5 {[%emt 0:00:57]} 17. Bg3 {[%emt 0:02:00]} Qd8 {[%emt 0:09:25]} 18. b4 {[%emt 0:04:49]} Rc8 {[%emt 0:06:21]} 19. Kh2 {[%emt 0:01:23]} h5 {[%emt 0:00:42]} 20. f5 {[%emt 0:02:42]} Bh7 {[%emt 0:03:09]} 21. g5 {[%emt 0:09:02]} Ne8 {[%emt 0:00:08]} 22. g6 {[%emt 0:00:42]} fxg6 {[%emt 0:00:08]} 23. fxe6 {[%emt 0:00:05]} h4 {[%emt 0:07:35]} 24. Bf2 {[%emt 0:01:51]} Ndf6 {[%emt 0:03:15]} 25. Bxh4 {[%emt 0:05:19]} Nc7 {[%emt 0:05:06]} 26. Nf3 {[%emt 0:00:09]} Nxe6 {[%emt 0:00:14]} 27. Qe3 {[%emt 0:04:29]} Nc7 {[%emt 0:02:42]} 28. c5 {[%emt 0:00:15]} Re8 {[%emt 0:00:59]} 29. Qf2 {[%emt 0:01:41]} Ne6 {[%emt 0:00:42]} 30. Ne5 {[%emt 0:03:58]} g5 {[%emt 0:01:57]} 31. Bg3 {[%emt 0:00:01]} Rf8 {[%emt 0:02:02]} 32. Qe3 {[%emt 0:00:47]} Qe8 {[%emt 0:02:06]} 33. Bf3 {[%emt 0:01:42]} Bd8 {[%emt 0:00:48]} 34. Ng4 {[%emt 0:00:50]} Bc7 {[%emt 0:06:02]} 35. Qg1 {[%emt 0:00:01]} Bxg3+ {[%emt 0:00:33]} 36. Kxg3 {[%emt 0:00:12]} Qe7 {[%emt 0:05:47]} 37. e3 {[%emt 0:00:11]} Rce8 {[%emt 0:00:06]} 38. Kg2 {[%emt 0:01:14]} Nd8 {[%emt 0:00:13]} 39. Rae1 {[%emt 0:00:46]} Ne4 {[%emt 0:00:02]} 40. Bxe4 {[%emt 0:01:04]} Bxe4+ {[%emt 0:00:09]} 41. Kh2 {[%emt 0:00:06]} Bh7 {[%emt 0:02:58]} 42. Rxf8+ {[%emt 0:01:06]} Rxf8 {[%emt 0:00:21]} 43. Rf1 {[%emt 0:00:07]} Nf7 {[%emt 0:01:13]} 44. Qg3 {[%emt 0:00:18]} Bg6 {[%emt 0:00:54]} 45. Re1 {[%emt 0:01:26]} Bf5 {[%emt 0:00:57]} 46. Nf2 {[%emt 0:00:18]} Qd8 {[%emt 0:00:33]} 47. Rg1 {[%emt 0:00:23]} Qf6 {[%emt 0:00:25]} 48. Ncd1 {[%emt 0:00:44]} Re8 {[%emt 0:01:17]} 49. Nc3 {[%emt 0:00:17]} Qe7 {[%emt 0:00:48]} 50. Ncd1 {[%emt 0:00:21]} Qf6 {[%emt 0:00:12]} 51. Nc3 {[%emt 0:00:07]} Qe7 {[%emt 0:00:18]} 52. Ncd1 {[%emt 0:00:06]} Qf6 {[%emt 0:00:04]} 1/2-1/2

[Event "Astana Open-A 2019"]
[Site "Nur-Sultan"]
[Date "2019.07.17"]
[Round "8.4"]
[White "Malakhatko, Vadim"]
[Black "Vakhidov, Jakhongir"]
[Result "1-0"]
[ECO "E61"]
[WhiteElo "2462"]
[BlackElo "2541"]
[Annotator "ChessBase"]
[PlyCount "135"]
[EventDate "2019.07.11"]
[EventCountry "KAZ"]
[SourceTitle "playchess.com"]
[Source "ChessBase"]
[SourceQuality "1"]
[TimeControl "5400+30"]

1. d4 {[%emt 0:00:00]} d6 {[%emt 0:00:15]} 2. Nf3 {[%emt 0:00:00]} g6 {[%emt 0:00:06]} 3. c4 {[%emt 0:00:00]} Nf6 {[%emt 0:00:21]} 4. Nc3 {[%emt 0:00:00]} Bf5 {[%emt 0:00:06]} 5. d5 {[%emt 0:01:39]} Bg7 {[%emt 0:00:07]} 6. Nd4 {[%emt 0:00:05]} Bd7 {[%emt 0:00:07]} 7. e4 {[%emt 0:00:04]} e6 {[%emt 0:00:06]} 8. Be2 {[%emt 0:00:47]} exd5 {[%emt 0:00:31]} 9. cxd5 {[%emt 0:01:05]} O-O {[%emt 0:00:39]} 10. O-O {[%emt 0:00:07]} Re8 {[%emt 0:00:15]} 11. Bf3 {[%emt 0:00:05]} a5 {[%emt 0:02:23]} 12. Re1 {[%emt 0:10:37]} Na6 {[%emt 0:00:19]} 13. Bf4 {[%emt 0:10:48]} Nc5 {[%emt 0:00:18]} 14. Qd2 {[%emt 0:00:05]} Ng4 {[%emt 0:09:34]} 15. h3 {[%emt 0:08:34]} Ne5 {[%emt 0:00:17]} 16. Be2 {[%emt 0:00:05]} Ned3 {[%emt 0:04:28]} 17. Bxd3 {[%emt 0:00:06]} Bxd4 {[%emt 0:00:05]} 18. Bc2 {[%emt 0:00:23]} Bg7 {[%emt 0:03:22]} 19. Bg5 {[%emt 0:08:40]} Qb8 {[%emt 0:01:36]} 20. Be3 {[%emt 0:05:07]} b5 {[%emt 0:04:08]} 21. Bd4 {[%emt 0:00:06]} b4 {[%emt 0:19:46]} 22. Bxg7 {[%emt 0:00:08]} Kxg7 {[%emt 0:00:03]} 23. Qd4+ {[%emt 0:00:07]} f6 {[%emt 0:00:31]} 24. Ne2 {[%emt 0:01:01]} Qb6 {[%emt 0:00:15]} 25. Ng3 {[%emt 0:01:04]} Na4 {[%emt 0:03:00]} 26. Qxb6 {[%emt 0:00:09]} Nxb6 {[%emt 0:00:01]} 27. Rac1 {[%emt 0:00:35]} Bb5 {[%emt 0:00:33]} 28. Bd1 {[%emt 0:08:23]} Ra7 {[%emt 0:00:20]} 29. Be2 {[%emt 0:00:26]} Bxe2 {[%emt 0:05:43]} 30. Rxe2 {[%emt 0:02:45]} f5 {[%emt 0:00:19]} 31. Rec2 {[%emt 0:12:29]} Re7 {[%emt 0:00:31]} 32. exf5 {[%emt 0:00:07]} Nxd5 {[%emt 0:00:15]} 33. fxg6 {[%emt 0:00:06]} hxg6 {[%emt 0:00:11]} 34. f3 {[%emt 0:00:22]} Nf4 {[%emt 0:17:35]} 35. Rd2 {[%emt 0:02:28]} Re5 {[%emt 0:06:49]} 36. Kf2 {[%emt 0:01:35]} Kf7 {[%emt 0:01:59]} 37. h4 {[%emt 0:03:48]} Ne6 {[%emt 0:05:08]} 38. Ne4 {[%emt 0:04:32]} Ke7 {[%emt 0:00:22]} 39. g4 {[%emt 0:00:54]} Ra8 {[%emt 0:01:34]} 40. Ng5 {[%emt 0:05:00]} Kd7 {[%emt 0:06:57]} 41. Nxe6 {[%emt 0:02:17]} Rxe6 {[%emt 0:00:02]} 42. Rc5 {[%emt 0:00:58]} c6 {[%emt 0:00:47]} 43. h5 {[%emt 0:01:20]} d5 {[%emt 0:03:06]} 44. hxg6 {[%emt 0:00:14]} Rxg6 {[%emt 0:00:04]} 45. Kg3 {[%emt 0:00:06]} Rd6 {[%emt 0:00:42]} 46. g5 {[%emt 0:01:08]} Kc7 {[%emt 0:00:08]} 47. Kg4 {[%emt 0:00:06]} Re8 {[%emt 0:03:10]} 48. Rc1 {[%emt 0:00:17]} d4 {[%emt 0:00:39]} 49. Rc4 {[%emt 0:05:39]} d3 {[%emt 0:01:21]} 50. Re4 {[%emt 0:00:05]} Rxe4+ {[%emt 0:01:39]} 51. fxe4 {[%emt 0:00:09]} c5 {[%emt 0:00:00]} 52. b3 {[%emt 0:00:07]} c4 {[%emt 0:01:00]} 53. bxc4 {[%emt 0:00:04]} Kc6 {[%emt 0:00:15]} 54. Kf5 {[%emt 0:01:22]} Kc5 {[%emt 0:01:02]} 55. g6 {[%emt 0:00:07]} Kxc4 {[%emt 0:00:16]} 56. g7 {[%emt 0:00:09]} Rd8 {[%emt 0:00:02]} 57. Rg2 {[%emt 0:00:22]} Rg8 {[%emt 0:02:43]} 58. Kf6 {[%emt 0:00:22]} a4 {[%emt 0:00:08]} 59. e5 {[%emt 0:00:53]} b3 {[%emt 0:00:32]} 60. axb3+ {[%emt 0:00:13]} axb3 {[%emt 0:00:12]} 61. e6 {[%emt 0:00:35]} Kc3 {[%emt 0:00:43]} 62. Kf7 {[%emt 0:00:35]} d2 {[%emt 0:01:00]} 63. Rg1 {[%emt 0:00:20]} Rxg7+ {[%emt 0:00:33]} 64. Kxg7 {[%emt 0:00:05]} Kc2 {[%emt 0:00:25]} 65. e7 {[%emt 0:00:06]} d1=Q {[%emt 0:00:18]} 66. Rxd1 {[%emt 0:00:06]} Kxd1 {[%emt 0:00:04]} 67. e8=Q {[%emt 0:00:08]} b2 {[%emt 0:00:03]} 68. Qe4 {[%emt 0:00:39]} 1-0